Workbook

Sheet RMI
C1: Relatório de Salários de Contribuição - INSS
C3: DIB: | D3: 2019-11-13
C5: Correção Monetária dos salários-de-contribuição pela OTNBTN ATÉ 09/1988, INPC ATÉ 12/1992, IRSM ATÉ 02/1994, URV PBC ATÉ 06/1994, IPCR ATÉ 06/1995, INPC ATÉ 03/1996, IGPDI ATÉ 02/1999, IGPM ATÉ 05/2004, INPC ATÉ 12/2050
I8: Siga as redes Sociais da ABLCALC
C10: Teto INSS | D10: Salário Mínimo | F10: Data | G10: Índices | I10: @giovannimds
C11: 765000 | D11: 66000 | F11: 1966-01-01 | G11: ='Índices INSS'!$E$1/VLOOKUP(F11,'Índices INSS'!A:D,4,1) -> 0.005806353049 | I11: @ablcalc
C12: 765000 | D12: 66000 | F12: 1966-02-01 | G12: ='Índices INSS'!$E$1/VLOOKUP(F12,'Índices INSS'!A:D,4,1) -> 0.005507740437
C13: 765000 | D13: 84000 | F13: 1966-03-01 | G13: ='Índices INSS'!$E$1/VLOOKUP(F13,'Índices INSS'!A:D,4,1) -> 0.005571413897
C14: 765000 | D14: 84000 | F14: 1966-04-01 | G14: ='Índices INSS'!$E$1/VLOOKUP(F14,'Índices INSS'!A:D,4,1) -> 0.005476446833
C15: 765000 | D15: 84000 | F15: 1966-05-01 | G15: ='Índices INSS'!$E$1/VLOOKUP(F15,'Índices INSS'!A:D,4,1) -> 0.00527272762
C16: 765000 | D16: 84000 | F16: 1966-06-01 | G16: ='Índices INSS'!$E$1/VLOOKUP(F16,'Índices INSS'!A:D,4,1) -> 0.005049002772
C17: 765000 | D17: 84000 | F17: 1966-07-01 | G17: ='Índices INSS'!$E$1/VLOOKUP(F17,'Índices INSS'!A:D,4,1) -> 0.004850803315
C18: 765000 | D18: 84000 | F18: 1966-08-01 | G18: ='Índices INSS'!$E$1/VLOOKUP(F18,'Índices INSS'!A:D,4,1) -> 0.0047178395
C19: 765000 | D19: 84000 | F19: 1966-09-01 | G19: ='Índices INSS'!$E$1/VLOOKUP(F19,'Índices INSS'!A:D,4,1) -> 0.004587599389
C20: 765000 | D20: 84000 | F20: 1966-10-01 | G20: ='Índices INSS'!$E$1/VLOOKUP(F20,'Índices INSS'!A:D,4,1) -> 0.004460225171
C21: 765000 | D21: 84000 | F21: 1966-11-01 | G21: ='Índices INSS'!$E$1/VLOOKUP(F21,'Índices INSS'!A:D,4,1) -> 0.004345602517
C22: 765000 | D22: 84000 | F22: 1966-12-01 | G22: ='Índices INSS'!$E$1/VLOOKUP(F22,'Índices INSS'!A:D,4,1) -> 0.004247926959
C23: 765000 | D23: 84000 | F23: 1967-01-01 | G23: ='Índices INSS'!$E$1/VLOOKUP(F23,'Índices INSS'!A:D,4,1) -> 0.004149180609
C24: 765 | D24: 84 | F24: 1967-02-01 | G24: ='Índices INSS'!$E$1/VLOOKUP(F24,'Índices INSS'!A:D,4,1) -> 4.053215464
C25: 1050 | D25: 105 | F25: 1967-03-01 | G25: ='Índices INSS'!$E$1/VLOOKUP(F25,'Índices INSS'!A:D,4,1) -> 3.969747163
C26: 1050 | D26: 105 | F26: 1967-04-01 | G26: ='Índices INSS'!$E$1/VLOOKUP(F26,'Índices INSS'!A:D,4,1) -> 3.91174768
C27: 1050 | D27: 105 | F27: 1967-05-01 | G27: ='Índices INSS'!$E$1/VLOOKUP(F27,'Índices INSS'!A:D,4,1) -> 3.853877091
C28: 1050 | D28: 105 | F28: 1967-06-01 | G28: ='Índices INSS'!$E$1/VLOOKUP(F28,'Índices INSS'!A:D,4,1) -> 3.785760657
C29: 1050 | D29: 105 | F29: 1967-07-01 | G29: ='Índices INSS'!$E$1/VLOOKUP(F29,'Índices INSS'!A:D,4,1) -> 3.681644845
C30: 1050 | D30: 105 | F30: 1967-08-01 | G30: ='Índices INSS'!$E$1/VLOOKUP(F30,'Índices INSS'!A:D,4,1) -> 3.591112539
C31: 1050 | D31: 105 | F31: 1967-09-01 | G31: ='Índices INSS'!$E$1/VLOOKUP(F31,'Índices INSS'!A:D,4,1) -> 3.537081148
C32: 1050 | D32: 105 | F32: 1967-10-01 | G32: ='Índices INSS'!$E$1/VLOOKUP(F32,'Índices INSS'!A:D,4,1) -> 3.520287266
C33: 1050 | D33: 105 | F33: 1967-11-01 | G33: ='Índices INSS'!$E$1/VLOOKUP(F33,'Índices INSS'!A:D,4,1) -> 3.496026937
C34: 1050 | D34: 105 | F34: 1967-12-01 | G34: ='Índices INSS'!$E$1/VLOOKUP(F34,'Índices INSS'!A:D,4,1) -> 3.447262649
C35: 1050 | D35: 105 | F35: 1968-01-01 | G35: ='Índices INSS'!$E$1/VLOOKUP(F35,'Índices INSS'!A:D,4,1) -> 3.384321046
C36: 1050 | D36: 105 | F36: 1968-02-01 | G36: ='Índices INSS'!$E$1/VLOOKUP(F36,'Índices INSS'!A:D,4,1) -> 3.325930347
C37: 1050 | D37: 129.6 | F37: 1968-03-01 | G37: ='Índices INSS'!$E$1/VLOOKUP(F37,'Índices INSS'!A:D,4,1) -> 3.278416907
C38: 1176 | D38: 129.6 | F38: 1968-04-01 | G38: ='Índices INSS'!$E$1/VLOOKUP(F38,'Índices INSS'!A:D,4,1) -> 3.231158309
C39: 1176 | D39: 129.6 | F39: 1968-05-01 | G39: ='Índices INSS'!$E$1/VLOOKUP(F39,'Índices INSS'!A:D,4,1) -> 3.171617221
C40: 1176 | D40: 129.6 | F40: 1968-06-01 | G40: ='Índices INSS'!$E$1/VLOOKUP(F40,'Índices INSS'!A:D,4,1) -> 3.089277172
C41: 1176 | D41: 129.6 | F41: 1968-07-01 | G41: ='Índices INSS'!$E$1/VLOOKUP(F41,'Índices INSS'!A:D,4,1) -> 3.003597744
C42: 1176 | D42: 129.6 | F42: 1968-08-01 | G42: ='Índices INSS'!$E$1/VLOOKUP(F42,'Índices INSS'!A:D,4,1) -> 2.937685195
C43: 1176 | D43: 129.6 | F43: 1968-09-01 | G43: ='Índices INSS'!$E$1/VLOOKUP(F43,'Índices INSS'!A:D,4,1) -> 2.884928224
C44: 1176 | D44: 129.6 | F44: 1968-10-01 | G44: ='Índices INSS'!$E$1/VLOOKUP(F44,'Índices INSS'!A:D,4,1) -> 2.844907208
C45: 1176 | D45: 129.6 | F45: 1968-11-01 | G45: ='Índices INSS'!$E$1/VLOOKUP(F45,'Índices INSS'!A:D,4,1) -> 2.802717619
C46: 1176 | D46: 129.6 | F46: 1968-12-01 | G46: ='Índices INSS'!$E$1/VLOOKUP(F46,'Índices INSS'!A:D,4,1) -> 2.757809993
C47: 1176 | D47: 129.6 | F47: 1969-01-01 | G47: ='Índices INSS'!$E$1/VLOOKUP(F47,'Índices INSS'!A:D,4,1) -> 2.705936646
C48: 1176 | D48: 129.6 | F48: 1969-02-01 | G48: ='Índices INSS'!$E$1/VLOOKUP(F48,'Índices INSS'!A:D,4,1) -> 2.657443093
C49: 1176 | D49: 129.6 | F49: 1969-03-01 | G49: ='Índices INSS'!$E$1/VLOOKUP(F49,'Índices INSS'!A:D,4,1) -> 2.611364522
C50: 1176 | D50: 129.6 | F50: 1969-04-01 | G50: ='Índices INSS'!$E$1/VLOOKUP(F50,'Índices INSS'!A:D,4,1) -> 2.575085938
C51: 1416 | D51: 156 | F51: 1969-05-01 | G51: ='Índices INSS'!$E$1/VLOOKUP(F51,'Índices INSS'!A:D,4,1) -> 2.535792315
C52: 1416 | D52: 156 | F52: 1969-06-01 | G52: ='Índices INSS'!$E$1/VLOOKUP(F52,'Índices INSS'!A:D,4,1) -> 2.504819718
C53: 1416 | D53: 156 | F53: 1969-07-01 | G53: ='Índices INSS'!$E$1/VLOOKUP(F53,'Índices INSS'!A:D,4,1) -> 2.471422155
C54: 1416 | D54: 156 | F54: 1969-08-01 | G54: ='Índices INSS'!$E$1/VLOOKUP(F54,'Índices INSS'!A:D,4,1) -> 2.454429891
C55: 1416 | D55: 156 | F55: 1969-09-01 | G55: ='Índices INSS'!$E$1/VLOOKUP(F55,'Índices INSS'!A:D,4,1) -> 2.436437289
C56: 1416 | D56: 156 | F56: 1969-10-01 | G56: ='Índices INSS'!$E$1/VLOOKUP(F56,'Índices INSS'!A:D,4,1) -> 2.414465413
C57: 1416 | D57: 156 | F57: 1969-11-01 | G57: ='Índices INSS'!$E$1/VLOOKUP(F57,'Índices INSS'!A:D,4,1) -> 2.375781512
C58: 1416 | D58: 156 | F58: 1969-12-01 | G58: ='Índices INSS'!$E$1/VLOOKUP(F58,'Índices INSS'!A:D,4,1) -> 2.327027038
C59: 1416 | D59: 156 | F59: 1970-01-01 | G59: ='Índices INSS'!$E$1/VLOOKUP(F59,'Índices INSS'!A:D,4,1) -> 2.275925901
C60: 1416 | D60: 156 | F60: 1970-02-01 | G60: ='Índices INSS'!$E$1/VLOOKUP(F60,'Índices INSS'!A:D,4,1) -> 2.225992221
C61: 1416 | D61: 156 | F61: 1970-03-01 | G61: ='Índices INSS'!$E$1/VLOOKUP(F61,'Índices INSS'!A:D,4,1) -> 2.182147638
C62: 1416 | D62: 156 | F62: 1970-04-01 | G62: ='Índices INSS'!$E$1/VLOOKUP(F62,'Índices INSS'!A:D,4,1) -> 2.157722436
C63: 1704 | D63: 187 | F63: 1970-05-01 | G63: ='Índices INSS'!$E$1/VLOOKUP(F63,'Índices INSS'!A:D,4,1) -> 2.138098116
C64: 1704 | D64: 187 | F64: 1970-06-01 | G64: ='Índices INSS'!$E$1/VLOOKUP(F64,'Índices INSS'!A:D,4,1) -> 2.118361763
C65: 1704 | D65: 187 | F65: 1970-07-01 | G65: ='Índices INSS'!$E$1/VLOOKUP(F65,'Índices INSS'!A:D,4,1) -> 2.086265405
C66: 1704 | D66: 187 | F66: 1970-08-01 | G66: ='Índices INSS'!$E$1/VLOOKUP(F66,'Índices INSS'!A:D,4,1) -> 2.067913704
C67: 1704 | D67: 187 | F67: 1970-09-01 | G67: ='Índices INSS'!$E$1/VLOOKUP(F67,'Índices INSS'!A:D,4,1) -> 2.048575155
C68: 1704 | D68: 187 | F68: 1970-10-01 | G68: ='Índices INSS'!$E$1/VLOOKUP(F68,'Índices INSS'!A:D,4,1) -> 2.024479396
C69: 1704 | D69: 187 | F69: 1970-11-01 | G69: ='Índices INSS'!$E$1/VLOOKUP(F69,'Índices INSS'!A:D,4,1) -> 1.986919465
C70: 1704 | D70: 187 | F70: 1970-12-01 | G70: ='Índices INSS'!$E$1/VLOOKUP(F70,'Índices INSS'!A:D,4,1) -> 1.945608935
C71: 1704 | D71: 187 | F71: 1971-01-01 | G71: ='Índices INSS'!$E$1/VLOOKUP(F71,'Índices INSS'!A:D,4,1) -> 1.908245301
C72: 1704 | D72: 187 | F72: 1971-02-01 | G72: ='Índices INSS'!$E$1/VLOOKUP(F72,'Índices INSS'!A:D,4,1) -> 1.873745524
C73: 1704 | D73: 187 | F73: 1971-03-01 | G73: ='Índices INSS'!$E$1/VLOOKUP(F73,'Índices INSS'!A:D,4,1) -> 1.849299084
C74: 1704 | D74: 187 | F74: 1971-04-01 | G74: ='Índices INSS'!$E$1/VLOOKUP(F74,'Índices INSS'!A:D,4,1) -> 1.831030889
C75: 2088 | D75: 225.6 | F75: 1971-05-01 | G75: ='Índices INSS'!$E$1/VLOOKUP(F75,'Índices INSS'!A:D,4,1) -> 1.810055603
C76: 2088 | D76: 225.6 | F76: 1971-06-01 | G76: ='Índices INSS'!$E$1/VLOOKUP(F76,'Índices INSS'!A:D,4,1) -> 1.784585464
C77: 2088 | D77: 225.6 | F77: 1971-07-01 | G77: ='Índices INSS'!$E$1/VLOOKUP(F77,'Índices INSS'!A:D,4,1) -> 1.749917498
C78: 2088 | D78: 225.6 | F78: 1971-08-01 | G78: ='Índices INSS'!$E$1/VLOOKUP(F78,'Índices INSS'!A:D,4,1) -> 1.715654169
C79: 2088 | D79: 225.6 | F79: 1971-09-01 | G79: ='Índices INSS'!$E$1/VLOOKUP(F79,'Índices INSS'!A:D,4,1) -> 1.680360054
C80: 2088 | D80: 225.6 | F80: 1971-10-01 | G80: ='Índices INSS'!$E$1/VLOOKUP(F80,'Índices INSS'!A:D,4,1) -> 1.644522295
C81: 2088 | D81: 225.6 | F81: 1971-11-01 | G81: ='Índices INSS'!$E$1/VLOOKUP(F81,'Índices INSS'!A:D,4,1) -> 1.612066401
C82: 2088 | D82: 225.6 | F82: 1971-12-01 | G82: ='Índices INSS'!$E$1/VLOOKUP(F82,'Índices INSS'!A:D,4,1) -> 1.58606961
C83: 2088 | D83: 225.6 | F83: 1972-01-01 | G83: ='Índices INSS'!$E$1/VLOOKUP(F83,'Índices INSS'!A:D,4,1) -> 1.566733611
C84: 2088 | D84: 225.6 | F84: 1972-02-01 | G84: ='Índices INSS'!$E$1/VLOOKUP(F84,'Índices INSS'!A:D,4,1) -> 1.548111991
C85: 2088 | D85: 225.6 | F85: 1972-03-01 | G85: ='Índices INSS'!$E$1/VLOOKUP(F85,'Índices INSS'!A:D,4,1) -> 1.527745312
C86: 2088 | D86: 225.6 | F86: 1972-04-01 | G86: ='Índices INSS'!$E$1/VLOOKUP(F86,'Índices INSS'!A:D,4,1) -> 1.510506954
C87: 2496 | D87: 268.8 | F87: 1972-05-01 | G87: ='Índices INSS'!$E$1/VLOOKUP(F87,'Índices INSS'!A:D,4,1) -> 1.490650299
C88: 2496 | D88: 268.8 | F88: 1972-06-01 | G88: ='Índices INSS'!$E$1/VLOOKUP(F88,'Índices INSS'!A:D,4,1) -> 1.46593839
C89: 2496 | D89: 268.8 | F89: 1972-07-01 | G89: ='Índices INSS'!$E$1/VLOOKUP(F89,'Índices INSS'!A:D,4,1) -> 1.440093323
C90: 2496 | D90: 268.8 | F90: 1972-08-01 | G90: ='Índices INSS'!$E$1/VLOOKUP(F90,'Índices INSS'!A:D,4,1) -> 1.419729713
C91: 2496 | D91: 268.8 | F91: 1972-09-01 | G91: ='Índices INSS'!$E$1/VLOOKUP(F91,'Índices INSS'!A:D,4,1) -> 1.40790905
C92: 2496 | D92: 268.8 | F92: 1972-10-01 | G92: ='Índices INSS'!$E$1/VLOOKUP(F92,'Índices INSS'!A:D,4,1) -> 1.397903555
C93: 2496 | D93: 268.8 | F93: 1972-11-01 | G93: ='Índices INSS'!$E$1/VLOOKUP(F93,'Índices INSS'!A:D,4,1) -> 1.384649414
C94: 2496 | D94: 268.8 | F94: 1972-12-01 | G94: ='Índices INSS'!$E$1/VLOOKUP(F94,'Índices INSS'!A:D,4,1) -> 1.375559305
C95: 2496 | D95: 268.8 | F95: 1973-01-01 | G95: ='Índices INSS'!$E$1/VLOOKUP(F95,'Índices INSS'!A:D,4,1) -> 1.360031553
C96: 2496 | D96: 268.8 | F96: 1973-02-01 | G96: ='Índices INSS'!$E$1/VLOOKUP(F96,'Índices INSS'!A:D,4,1) -> 1.346729635
C97: 2496 | D97: 268.8 | F97: 1973-03-01 | G97: ='Índices INSS'!$E$1/VLOOKUP(F97,'Índices INSS'!A:D,4,1) -> 1.33276321
C98: 2496 | D98: 268.8 | F98: 1973-04-01 | G98: ='Índices INSS'!$E$1/VLOOKUP(F98,'Índices INSS'!A:D,4,1) -> 1.316920784
C99: 2880 | D99: 312 | F99: 1973-05-01 | G99: ='Índices INSS'!$E$1/VLOOKUP(F99,'Índices INSS'!A:D,4,1) -> 1.301977983
C100: 6240 | D100: 312 | F100: 1973-06-01 | G100: ='Índices INSS'!$E$1/VLOOKUP(F100,'Índices INSS'!A:D,4,1) -> 1.285653272
C101: 6240 | D101: 312 | F101: 1973-07-01 | G101: ='Índices INSS'!$E$1/VLOOKUP(F101,'Índices INSS'!A:D,4,1) -> 1.271575532
C102: 6240 | D102: 312 | F102: 1973-08-01 | G102: ='Índices INSS'!$E$1/VLOOKUP(F102,'Índices INSS'!A:D,4,1) -> 1.260269653
C103: 6240 | D103: 312 | F103: 1973-09-01 | G103: ='Índices INSS'!$E$1/VLOOKUP(F103,'Índices INSS'!A:D,4,1) -> 1.249810985
C104: 6240 | D104: 312 | F104: 1973-10-01 | G104: ='Índices INSS'!$E$1/VLOOKUP(F104,'Índices INSS'!A:D,4,1) -> 1.237773514
C105: 6240 | D105: 312 | F105: 1973-11-01 | G105: ='Índices INSS'!$E$1/VLOOKUP(F105,'Índices INSS'!A:D,4,1) -> 1.229405931
C106: 6240 | D106: 312 | F106: 1973-12-01 | G106: ='Índices INSS'!$E$1/VLOOKUP(F106,'Índices INSS'!A:D,4,1) -> 1.218988577
C107: 6240 | D107: 312 | F107: 1974-01-01 | G107: ='Índices INSS'!$E$1/VLOOKUP(F107,'Índices INSS'!A:D,4,1) -> 1.195552285
C108: 6240 | D108: 312 | F108: 1974-02-01 | G108: ='Índices INSS'!$E$1/VLOOKUP(F108,'Índices INSS'!A:D,4,1) -> 1.183078731
C109: 6240 | D109: 312 | F109: 1974-03-01 | G109: ='Índices INSS'!$E$1/VLOOKUP(F109,'Índices INSS'!A:D,4,1) -> 1.165623748
C110: 6240 | D110: 312 | F110: 1974-04-01 | G110: ='Índices INSS'!$E$1/VLOOKUP(F110,'Índices INSS'!A:D,4,1) -> 1.151145674
C111: 7536 | D111: 376.8 | F111: 1974-05-01 | G111: ='Índices INSS'!$E$1/VLOOKUP(F111,'Índices INSS'!A:D,4,1) -> 1.132613735
C112: 7536 | D112: 376.8 | F112: 1974-06-01 | G112: ='Índices INSS'!$E$1/VLOOKUP(F112,'Índices INSS'!A:D,4,1) -> 1.109025755
C113: 7536 | D113: 376.8 | F113: 1974-07-01 | G113: ='Índices INSS'!$E$1/VLOOKUP(F113,'Índices INSS'!A:D,4,1) -> 1.073334382
C114: 7536 | D114: 376.8 | F114: 1974-08-01 | G114: ='Índices INSS'!$E$1/VLOOKUP(F114,'Índices INSS'!A:D,4,1) -> 1.028111263
C115: 7536 | D115: 376.8 | F115: 1974-09-01 | G115: ='Índices INSS'!$E$1/VLOOKUP(F115,'Índices INSS'!A:D,4,1) -> 0.9813218375
C116: 7536 | D116: 376.8 | F116: 1974-10-01 | G116: ='Índices INSS'!$E$1/VLOOKUP(F116,'Índices INSS'!A:D,4,1) -> 0.9458825506
C117: 7536 | D117: 376.8 | F117: 1974-11-01 | G117: ='Índices INSS'!$E$1/VLOOKUP(F117,'Índices INSS'!A:D,4,1) -> 0.9258927121
C118: 7536 | D118: 415.2 | F118: 1974-12-01 | G118: ='Índices INSS'!$E$1/VLOOKUP(F118,'Índices INSS'!A:D,4,1) -> 0.9143859874
C119: 7536 | D119: 415.2 | F119: 1975-01-01 | G119: ='Índices INSS'!$E$1/VLOOKUP(F119,'Índices INSS'!A:D,4,1) -> 0.9028234373
C120: 7536 | D120: 415.2 | F120: 1975-02-01 | G120: ='Índices INSS'!$E$1/VLOOKUP(F120,'Índices INSS'!A:D,4,1) -> 0.8893285875
C121: 7536 | D121: 415.2 | F121: 1975-03-01 | G121: ='Índices INSS'!$E$1/VLOOKUP(F121,'Índices INSS'!A:D,4,1) -> 0.8747997385
C122: 7536 | D122: 415.2 | F122: 1975-04-01 | G122: ='Índices INSS'!$E$1/VLOOKUP(F122,'Índices INSS'!A:D,4,1) -> 0.8586676067
C123: 10020 | D123: 532.8 | F123: 1975-05-01 | G123: ='Índices INSS'!$E$1/VLOOKUP(F123,'Índices INSS'!A:D,4,1) -> 0.8418677155
C124: 10020 | D124: 532.8 | F124: 1975-06-01 | G124: ='Índices INSS'!$E$1/VLOOKUP(F124,'Índices INSS'!A:D,4,1) -> 0.8228927951
C125: 10020 | D125: 532.8 | F125: 1975-07-01 | G125: ='Índices INSS'!$E$1/VLOOKUP(F125,'Índices INSS'!A:D,4,1) -> 0.8081280531
C126: 10020 | D126: 532.8 | F126: 1975-08-01 | G126: ='Índices INSS'!$E$1/VLOOKUP(F126,'Índices INSS'!A:D,4,1) -> 0.7945381924
C127: 10020 | D127: 532.8 | F127: 1975-09-01 | G127: ='Índices INSS'!$E$1/VLOOKUP(F127,'Índices INSS'!A:D,4,1) -> 0.7823492691
C128: 10020 | D128: 532.8 | F128: 1975-10-01 | G128: ='Índices INSS'!$E$1/VLOOKUP(F128,'Índices INSS'!A:D,4,1) -> 0.7667894247
C129: 10020 | D129: 532.8 | F129: 1975-11-01 | G129: ='Índices INSS'!$E$1/VLOOKUP(F129,'Índices INSS'!A:D,4,1) -> 0.750489983
C130: 10020 | D130: 532.8 | F130: 1975-12-01 | G130: ='Índices INSS'!$E$1/VLOOKUP(F130,'Índices INSS'!A:D,4,1) -> 0.7361599667
C131: 10020 | D131: 532.8 | F131: 1976-01-01 | G131: ='Índices INSS'!$E$1/VLOOKUP(F131,'Índices INSS'!A:D,4,1) -> 0.722854528
C132: 10020 | D132: 532.8 | F132: 1976-02-01 | G132: ='Índices INSS'!$E$1/VLOOKUP(F132,'Índices INSS'!A:D,4,1) -> 0.7092378702
C133: 10020 | D133: 532.8 | F133: 1976-03-01 | G133: ='Índices INSS'!$E$1/VLOOKUP(F133,'Índices INSS'!A:D,4,1) -> 0.693719775
C134: 10020 | D134: 532.8 | F134: 1976-04-01 | G134: ='Índices INSS'!$E$1/VLOOKUP(F134,'Índices INSS'!A:D,4,1) -> 0.6776252934
C135: 12766 | D135: 768 | F135: 1976-05-01 | G135: ='Índices INSS'!$E$1/VLOOKUP(F135,'Índices INSS'!A:D,4,1) -> 0.6627616051
C136: 12766 | D136: 768 | F136: 1976-06-01 | G136: ='Índices INSS'!$E$1/VLOOKUP(F136,'Índices INSS'!A:D,4,1) -> 0.6418420473
C137: 12766 | D137: 768 | F137: 1976-07-01 | G137: ='Índices INSS'!$E$1/VLOOKUP(F137,'Índices INSS'!A:D,4,1) -> 0.6234503251
C138: 12766 | D138: 768 | F138: 1976-08-01 | G138: ='Índices INSS'!$E$1/VLOOKUP(F138,'Índices INSS'!A:D,4,1) -> 0.6079181382
C139: 12766 | D139: 768 | F139: 1976-09-01 | G139: ='Índices INSS'!$E$1/VLOOKUP(F139,'Índices INSS'!A:D,4,1) -> 0.591430476
C140: 12766 | D140: 768 | F140: 1976-10-01 | G140: ='Índices INSS'!$E$1/VLOOKUP(F140,'Índices INSS'!A:D,4,1) -> 0.5725980136
C141: 12766 | D141: 768 | F141: 1976-11-01 | G141: ='Índices INSS'!$E$1/VLOOKUP(F141,'Índices INSS'!A:D,4,1) -> 0.5526687241
C142: 12766 | D142: 768 | F142: 1976-12-01 | G142: ='Índices INSS'!$E$1/VLOOKUP(F142,'Índices INSS'!A:D,4,1) -> 0.5364282515
C143: 12766 | D143: 768 | F143: 1977-01-01 | G143: ='Índices INSS'!$E$1/VLOOKUP(F143,'Índices INSS'!A:D,4,1) -> 0.5248321893
C144: 12766 | D144: 768 | F144: 1977-02-01 | G144: ='Índices INSS'!$E$1/VLOOKUP(F144,'Índices INSS'!A:D,4,1) -> 0.5158990871
C145: 12766 | D145: 768 | F145: 1977-03-01 | G145: ='Índices INSS'!$E$1/VLOOKUP(F145,'Índices INSS'!A:D,4,1) -> 0.5059336611
C146: 12766 | D146: 768 | F146: 1977-04-01 | G146: ='Índices INSS'!$E$1/VLOOKUP(F146,'Índices INSS'!A:D,4,1) -> 0.4947154926
C147: 20820 | D147: 1106.4 | F147: 1977-05-01 | G147: ='Índices INSS'!$E$1/VLOOKUP(F147,'Índices INSS'!A:D,4,1) -> 0.4808451769
C148: 20820 | D148: 1106.4 | F148: 1977-06-01 | G148: ='Índices INSS'!$E$1/VLOOKUP(F148,'Índices INSS'!A:D,4,1) -> 0.4658550785
C149: 20820 | D149: 1106.4 | F149: 1977-07-01 | G149: ='Índices INSS'!$E$1/VLOOKUP(F149,'Índices INSS'!A:D,4,1) -> 0.4508204858
C150: 20820 | D150: 1106.4 | F150: 1977-08-01 | G150: ='Índices INSS'!$E$1/VLOOKUP(F150,'Índices INSS'!A:D,4,1) -> 0.4390935272
C151: 20820 | D151: 1106.4 | F151: 1977-09-01 | G151: ='Índices INSS'!$E$1/VLOOKUP(F151,'Índices INSS'!A:D,4,1) -> 0.4302728477
C152: 20820 | D152: 1106.4 | F152: 1977-10-01 | G152: ='Índices INSS'!$E$1/VLOOKUP(F152,'Índices INSS'!A:D,4,1) -> 0.4243249994
C153: 20820 | D153: 1106.4 | F153: 1977-11-01 | G153: ='Índices INSS'!$E$1/VLOOKUP(F153,'Índices INSS'!A:D,4,1) -> 0.4185211572
C154: 20820 | D154: 1106.4 | F154: 1977-12-01 | G154: ='Índices INSS'!$E$1/VLOOKUP(F154,'Índices INSS'!A:D,4,1) -> 0.4123617103
C155: 20820 | D155: 1106.4 | F155: 1978-01-01 | G155: ='Índices INSS'!$E$1/VLOOKUP(F155,'Índices INSS'!A:D,4,1) -> 0.4044370098
C156: 20820 | D156: 1106.4 | F156: 1978-02-01 | G156: ='Índices INSS'!$E$1/VLOOKUP(F156,'Índices INSS'!A:D,4,1) -> 0.3960773614
C157: 20820 | D157: 1106.4 | F157: 1978-03-01 | G157: ='Índices INSS'!$E$1/VLOOKUP(F157,'Índices INSS'!A:D,4,1) -> 0.3871056083
C158: 20820 | D158: 1106.4 | F158: 1978-04-01 | G158: ='Índices INSS'!$E$1/VLOOKUP(F158,'Índices INSS'!A:D,4,1) -> 0.3773752884
C159: 28940 | D159: 1560 | F159: 1978-05-01 | G159: ='Índices INSS'!$E$1/VLOOKUP(F159,'Índices INSS'!A:D,4,1) -> 0.3666657517
C160: 28940 | D160: 1560 | F160: 1978-06-01 | G160: ='Índices INSS'!$E$1/VLOOKUP(F160,'Índices INSS'!A:D,4,1) -> 0.3558233517
C161: 28940 | D161: 1560 | F161: 1978-07-01 | G161: ='Índices INSS'!$E$1/VLOOKUP(F161,'Índices INSS'!A:D,4,1) -> 0.3454179804
C162: 28940 | D162: 1560 | F162: 1978-08-01 | G162: ='Índices INSS'!$E$1/VLOOKUP(F162,'Índices INSS'!A:D,4,1) -> 0.335160429
C163: 28940 | D163: 1560 | F163: 1978-09-01 | G163: ='Índices INSS'!$E$1/VLOOKUP(F163,'Índices INSS'!A:D,4,1) -> 0.3261001917
C164: 28940 | D164: 1560 | F164: 1978-10-01 | G164: ='Índices INSS'!$E$1/VLOOKUP(F164,'Índices INSS'!A:D,4,1) -> 0.3177995844
C165: 28940 | D165: 1560 | F165: 1978-11-01 | G165: ='Índices INSS'!$E$1/VLOOKUP(F165,'Índices INSS'!A:D,4,1) -> 0.3104300677
C166: 28940 | D166: 1560 | F166: 1978-12-01 | G166: ='Índices INSS'!$E$1/VLOOKUP(F166,'Índices INSS'!A:D,4,1) -> 0.3026800362
C167: 28940 | D167: 1560 | F167: 1979-01-01 | G167: ='Índices INSS'!$E$1/VLOOKUP(F167,'Índices INSS'!A:D,4,1) -> 0.2949190066
C168: 28940 | D168: 1560 | F168: 1979-02-01 | G168: ='Índices INSS'!$E$1/VLOOKUP(F168,'Índices INSS'!A:D,4,1) -> 0.288406443
C169: 28940 | D169: 1560 | F169: 1979-03-01 | G169: ='Índices INSS'!$E$1/VLOOKUP(F169,'Índices INSS'!A:D,4,1) -> 0.2818534627
C170: 28940 | D170: 1560 | F170: 1979-04-01 | G170: ='Índices INSS'!$E$1/VLOOKUP(F170,'Índices INSS'!A:D,4,1) -> 0.2749862316
C171: 41674 | D171: 2268 | F171: 1979-05-01 | G171: ='Índices INSS'!$E$1/VLOOKUP(F171,'Índices INSS'!A:D,4,1) -> 0.2650572659
C172: 41674 | D172: 2268 | F172: 1979-06-01 | G172: ='Índices INSS'!$E$1/VLOOKUP(F172,'Índices INSS'!A:D,4,1) -> 0.2552985798
C173: 41674 | D173: 2268 | F173: 1979-07-01 | G173: ='Índices INSS'!$E$1/VLOOKUP(F173,'Índices INSS'!A:D,4,1) -> 0.2470787635
C174: 41674 | D174: 2268 | F174: 1979-08-01 | G174: ='Índices INSS'!$E$1/VLOOKUP(F174,'Índices INSS'!A:D,4,1) -> 0.2405366009
C175: 41674 | D175: 2268 | F175: 1979-09-01 | G175: ='Índices INSS'!$E$1/VLOOKUP(F175,'Índices INSS'!A:D,4,1) -> 0.233809004
C176: 41674 | D176: 2268 | F176: 1979-10-01 | G176: ='Índices INSS'!$E$1/VLOOKUP(F176,'Índices INSS'!A:D,4,1) -> 0.2247794343
C177: 51929 | D177: 2932.8 | F177: 1979-11-01 | G177: ='Índices INSS'!$E$1/VLOOKUP(F177,'Índices INSS'!A:D,4,1) -> 0.2149205556
C178: 51929 | D178: 2932.8 | F178: 1979-12-01 | G178: ='Índices INSS'!$E$1/VLOOKUP(F178,'Índices INSS'!A:D,4,1) -> 0.2056397853
C179: 51930 | D179: 2932.8 | F179: 1980-01-01 | G179: ='Índices INSS'!$E$1/VLOOKUP(F179,'Índices INSS'!A:D,4,1) -> 0.1975799461
C180: 51930 | D180: 2932.8 | F180: 1980-02-01 | G180: ='Índices INSS'!$E$1/VLOOKUP(F180,'Índices INSS'!A:D,4,1) -> 0.1896119222
C181: 51930 | D181: 2932.8 | F181: 1980-03-01 | G181: ='Índices INSS'!$E$1/VLOOKUP(F181,'Índices INSS'!A:D,4,1) -> 0.182845981
C182: 51930 | D182: 2932.8 | F182: 1980-04-01 | G182: ='Índices INSS'!$E$1/VLOOKUP(F182,'Índices INSS'!A:D,4,1) -> 0.1763234078
C183: 70136 | D183: 4149.6 | F183: 1980-05-01 | G183: ='Índices INSS'!$E$1/VLOOKUP(F183,'Índices INSS'!A:D,4,1) -> 0.1700339211
C184: 70136 | D184: 4149.6 | F184: 1980-06-01 | G184: ='Índices INSS'!$E$1/VLOOKUP(F184,'Índices INSS'!A:D,4,1) -> 0.1644437702
C185: 70136 | D185: 4149.6 | F185: 1980-07-01 | G185: ='Índices INSS'!$E$1/VLOOKUP(F185,'Índices INSS'!A:D,4,1) -> 0.1593437196
C186: 70136 | D186: 4149.6 | F186: 1980-08-01 | G186: ='Índices INSS'!$E$1/VLOOKUP(F186,'Índices INSS'!A:D,4,1) -> 0.1544019613
C187: 70136 | D187: 4149.6 | F187: 1980-09-01 | G187: ='Índices INSS'!$E$1/VLOOKUP(F187,'Índices INSS'!A:D,4,1) -> 0.1496133757
C188: 70136 | D188: 4149.6 | F188: 1980-10-01 | G188: ='Índices INSS'!$E$1/VLOOKUP(F188,'Índices INSS'!A:D,4,1) -> 0.1452550277
C189: 93706 | D189: 5788.8 | F189: 1980-11-01 | G189: ='Índices INSS'!$E$1/VLOOKUP(F189,'Índices INSS'!A:D,4,1) -> 0.1407518005
C190: 93706 | D190: 5788.8 | F190: 1980-12-01 | G190: ='Índices INSS'!$E$1/VLOOKUP(F190,'Índices INSS'!A:D,4,1) -> 0.1363880379
C191: 93706 | D191: 5788.8 | F191: 1981-01-01 | G191: ='Índices INSS'!$E$1/VLOOKUP(F191,'Índices INSS'!A:D,4,1) -> 0.1305151311
C192: 93706 | D192: 5788.8 | F192: 1981-02-01 | G192: ='Índices INSS'!$E$1/VLOOKUP(F192,'Índices INSS'!A:D,4,1) -> 0.1242993199
C193: 93706 | D193: 5788.8 | F193: 1981-03-01 | G193: ='Índices INSS'!$E$1/VLOOKUP(F193,'Índices INSS'!A:D,4,1) -> 0.1167133929
C194: 93706 | D194: 5788.8 | F194: 1981-04-01 | G194: ='Índices INSS'!$E$1/VLOOKUP(F194,'Índices INSS'!A:D,4,1) -> 0.1097958895
C195: 133540 | D195: 8464.8 | F195: 1981-05-01 | G195: ='Índices INSS'!$E$1/VLOOKUP(F195,'Índices INSS'!A:D,4,1) -> 0.1035812037
C196: 133540 | D196: 8464.8 | F196: 1981-06-01 | G196: ='Índices INSS'!$E$1/VLOOKUP(F196,'Índices INSS'!A:D,4,1) -> 0.09772423831
C197: 133540 | D197: 8464.8 | F197: 1981-07-01 | G197: ='Índices INSS'!$E$1/VLOOKUP(F197,'Índices INSS'!A:D,4,1) -> 0.09218720729
C198: 133540 | D198: 8464.8 | F198: 1981-08-01 | G198: ='Índices INSS'!$E$1/VLOOKUP(F198,'Índices INSS'!A:D,4,1) -> 0.08696925219
C199: 133540 | D199: 8464.8 | F199: 1981-09-01 | G199: ='Índices INSS'!$E$1/VLOOKUP(F199,'Índices INSS'!A:D,4,1) -> 0.08220153831
C200: 133540 | D200: 8464.8 | F200: 1981-10-01 | G200: ='Índices INSS'!$E$1/VLOOKUP(F200,'Índices INSS'!A:D,4,1) -> 0.0777684269
C201: 184390 | D201: 11928 | F201: 1981-11-01 | G201: ='Índices INSS'!$E$1/VLOOKUP(F201,'Índices INSS'!A:D,4,1) -> 0.07357439921
C202: 238560 | D202: 11928 | F202: 1981-12-01 | G202: ='Índices INSS'!$E$1/VLOOKUP(F202,'Índices INSS'!A:D,4,1) -> 0.0697388794
C203: 238560 | D203: 11928 | F203: 1982-01-01 | G203: ='Índices INSS'!$E$1/VLOOKUP(F203,'Índices INSS'!A:D,4,1) -> 0.06629164744
C204: 238560 | D204: 11928 | F204: 1982-02-01 | G204: ='Índices INSS'!$E$1/VLOOKUP(F204,'Índices INSS'!A:D,4,1) -> 0.06313481814
C205: 238560 | D205: 11928 | F205: 1982-03-01 | G205: ='Índices INSS'!$E$1/VLOOKUP(F205,'Índices INSS'!A:D,4,1) -> 0.06012851276
... 453 more rows

Sheet Índices INSS
A1: INSS | E1: =VLOOKUP(RMI!D3,A:D,4,1) -> 0.008529687175
A2: Data | B2: Variação Mensal % | C2: Índices Mensais | D2: Variação Acumulada
A3: 1964-01-01
A4: 1964-02-01
A5: 1964-03-01
A6: 1964-04-01
A7: 1964-05-01
A8: 1964-06-01
A9: 1964-07-01
A10: 1964-08-01
A11: 1964-09-01
A12: 1964-10-01
A13: 1964-11-01 | B13: 0
A14: 1964-12-01 | B14: 0
A15: 1965-01-01 | B15: 0.13 | C15: =B15+1 -> 1.13 | D15: 1
A16: 1965-02-01 | B16: 0 | C16: =B16+1 -> 1 | D16: =D15*C16 -> 1
A17: 1965-03-01 | B17: 0 | C17: 1 | D17: =D16*C17 -> 1
A18: 1965-04-01 | B18: 0.1858407 | C18: 1.1858407 | D18: 1.1858407
A19: 1965-05-01 | B19: 0 | C19: 1 | D19: 1.1858407
A20: 1965-06-01 | B20: 0 | C20: 1 | D20: 1.1858407
A21: 1965-07-01 | B21: 0.1343284 | C21: 1.1343284 | D21: 1.345132784
A22: 1965-08-01 | B22: 0 | C22: 1 | D22: 1.345132784
A23: 1965-09-01 | B23: 0.0328947 | C23: 1.0328947 | D23: 1.389380523
A24: 1965-10-01 | B24: 0.0127389 | C24: 1.0127389 | D24: 1.407079703
A25: 1965-11-01 | B25: 0.009434 | C25: 1.009434 | D25: 1.420354093
A26: 1965-12-01 | B26: 0.0155763 | C26: 1.0155763 | D26: 1.442477954
A27: 1966-01-01 | B27: 0.0184049 | C27: 1.0184049 | D27: 1.469026617
A28: 1966-02-01 | B28: 0.0542169 | C28: 1.0542169 | D28: 1.548672686
A29: 1966-03-01 | B29: -0.0114286 | C29: 0.9885714 | D29: 1.530973525
A30: 1966-04-01 | B30: 0.017341 | C30: 1.017341 | D30: 1.557522137
A31: 1966-05-01 | B31: 0.0386364 | C31: 1.0386364 | D31: 1.617699185
A32: 1966-06-01 | B32: 0.0443107 | C32: 1.0443107 | D32: 1.689380569
A33: 1966-07-01 | B33: 0.0408591 | C33: 1.0408591 | D33: 1.758407138
A34: 1966-08-01 | B34: 0.0281832 | C34: 1.0281832 | D34: 1.807964678
A35: 1966-09-01 | B35: 0.0283896 | C35: 1.0283896 | D35: 1.859292072
A36: 1966-10-01 | B36: 0.0285578 | C36: 1.0285578 | D36: 1.912389364
A37: 1966-11-01 | B37: 0.0263767 | C37: 1.0263767 | D37: 1.962831884
A38: 1966-12-01 | B38: 0.0229937 | C38: 1.0229937 | D38: 2.007964652
A39: 1967-01-01 | B39: 0.023799 | C39: 1.023799 | D39: 2.055752202
A40: 1967-02-01 | B40: 0.0236763 | C40: 1.0236763 | D40: =(D39/1000)*C40 -> 0.002104424808
A41: 1967-03-01 | B41: 0.0210261 | C41: 1.0210261 | D41: =D40*C41 -> 0.002148672655
A42: 1967-04-01 | B42: 0.014827 | C42: 1.014827 | D42: =D41*C42 -> 0.002180531024
A43: 1967-05-01 | B43: 0.0150162 | C43: 1.0150162 | D43: 0.002213274314
A44: 1967-06-01 | B44: 0.0179928 | C44: 1.0179928 | D44: 0.002253097316
A45: 1967-07-01 | B45: 0.0282797 | C45: 1.0282797 | D45: 0.002316814232
A46: 1967-08-01 | B46: 0.0252101 | C46: 1.0252101 | D46: 0.002375221351
A47: 1967-09-01 | B47: 0.0152757 | C47: 1.0152757 | D47: 0.00241150452
A48: 1967-10-01 | B48: 0.0047706 | C48: 1.0047706 | D48: 0.002423008843
A49: 1967-11-01 | B49: 0.0069394 | C49: 1.0069394 | D49: 0.002439823071
A50: 1967-12-01 | B50: 0.0141458 | C50: 1.0141458 | D50: 0.00247433632
A51: 1968-01-01 | B51: 0.018598 | C51: 1.018598 | D51: 0.002520354027
A52: 1968-02-01 | B52: 0.0175562 | C52: 1.0175562 | D52: 0.002564601866
A53: 1968-03-01 | B53: 0.0144928 | C53: 1.0144928 | D53: 0.002601770128
A54: 1968-04-01 | B54: 0.0146259 | C54: 1.0146259 | D54: 0.002639823358
A55: 1968-05-01 | B55: 0.0187731 | C55: 1.0187731 | D55: 0.002689381026
A56: 1968-06-01 | B56: 0.0266535 | C56: 1.0266535 | D56: 0.002761062443
A57: 1968-07-01 | B57: 0.0285256 | C57: 1.0285256 | D57: 0.002839823405
A58: 1968-08-01 | B58: 0.0224369 | C58: 1.0224369 | D58: 0.002903540239
A59: 1968-09-01 | B59: 0.0182871 | C59: 1.0182871 | D59: 0.00295663757
A60: 1968-10-01 | B60: 0.0140676 | C60: 1.0140676 | D60: 0.002998230365
A61: 1968-11-01 | B61: 0.0150531 | C61: 1.0150531 | D61: 0.003043363026
A62: 1968-12-01 | B62: 0.0162838 | C62: 1.0162838 | D62: 0.003092920541
A63: 1969-01-01 | B63: 0.0191702 | C63: 1.0191702 | D63: 0.003152212446
A64: 1969-02-01 | B64: 0.0182482 | C64: 1.0182482 | D64: 0.00320973465
A65: 1969-03-01 | B65: 0.0176454 | C65: 1.0176454 | D65: 0.003266371701
A66: 1969-04-01 | B66: 0.0140883 | C66: 1.0140883 | D66: 0.003312389326
A67: 1969-05-01 | B67: 0.0154956 | C67: 1.0154956 | D67: 0.003363716786
A68: 1969-06-01 | B68: 0.0123652 | C68: 1.0123652 | D68: 0.003405309817
A69: 1969-07-01 | B69: 0.0135135 | C69: 1.0135135 | D69: 0.003451327471
A70: 1969-08-01 | B70: 0.0069231 | C70: 1.0069231 | D70: 0.003475221356
A71: 1969-09-01 | B71: 0.0073848 | C71: 1.0073848 | D71: 0.003500885171
A72: 1969-10-01 | B72: 0.0091001 | C72: 1.0091001 | D72: 0.003532743576
A73: 1969-11-01 | B73: 0.0162826 | C73: 1.0162826 | D73: 0.003590265826
A74: 1969-12-01 | B74: 0.0209514 | C74: 1.0209514 | D74: 0.003665486922
A75: 1970-01-01 | B75: 0.0224529 | C75: 1.0224529 | D75: 0.003747787733
A76: 1970-02-01 | B76: 0.0224321 | C76: 1.0224321 | D76: 0.003831858482
A77: 1970-03-01 | B77: 0.0200924 | C77: 1.0200924 | D77: 0.003908849716
A78: 1970-04-01 | B78: 0.0113199 | C78: 1.0113199 | D78: 0.003953097504
A79: 1970-05-01 | B79: 0.0091784 | C79: =B79+1 -> 1.0091784 | D79: 0.003989380614
A80: 1970-06-01 | B80: 0.0093168 | C80: 1.0093168 | D80: 0.004026548875
A81: 1970-07-01 | B81: 0.0153846 | C81: 1.0153846 | D81: 0.004088495719
A82: 1970-08-01 | B82: 0.0088745 | C82: 1.0088745 | D82: 0.004124779074
A83: 1970-09-01 | B83: 0.00944 | C83: 1.00944 | D83: 0.004163716989
A84: 1970-10-01 | B84: 0.0119022 | C84: 1.0119022 | D84: 0.004213274381
A85: 1970-11-01 | B85: 0.0189036 | C85: 1.0189036 | D85: 0.004292920434
A86: 1970-12-01 | B86: 0.0212327 | C86: 1.0212327 | D86: 0.004384070726
A87: 1971-01-01 | B87: 0.0195801 | C87: 1.0195801 | D87: 0.004469911269
A88: 1971-02-01 | B88: 0.0184122 | C88: 1.0184122 | D88: 0.00455221217
A89: 1971-03-01 | B89: 0.0132193 | C89: 1.0132193 | D89: 0.004612389228
A90: 1971-04-01 | B90: 0.009977 | C90: 1.009977 | D90: 0.004658407035
A91: 1971-05-01 | B91: 0.0115882 | C91: 1.0115882 | D91: 0.004712389588
A92: 1971-06-01 | B92: 0.0142723 | C92: 1.0142723 | D92: 0.004779646226
A93: 1971-07-01 | B93: 0.0198112 | C93: 1.0198112 | D93: 0.004874336753
A94: 1971-08-01 | B94: 0.019971 | C94: 1.019971 | D94: 0.004971682132
A95: 1971-09-01 | B95: 0.0210039 | C95: 1.0210039 | D95: 0.005076106847
A96: 1971-10-01 | B96: 0.0217922 | C96: 1.0217922 | D96: 0.005186726382
A97: 1971-11-01 | B97: 0.0201331 | C97: 1.0201331 | D97: 0.005291151263
A98: 1971-12-01 | B98: 0.0163907 | C98: 1.0163907 | D98: 0.005377876936
A99: 1972-01-01 | B99: 0.0123416 | C99: 1.0123416 | D99: 0.005444248542
A100: 1972-02-01 | B100: 0.0120286 | C100: 1.0120286 | D100: 0.00550973523
A101: 1972-03-01 | B101: 0.0133312 | C101: 1.0133312 | D101: 0.005583186612
A102: 1972-04-01 | B102: 0.0114123 | C102: 1.0114123 | D102: 0.005646903613
A103: 1972-05-01 | B103: 0.0133208 | C103: 1.0133208 | D103: 0.005722124887
A104: 1972-06-01 | B104: 0.0168574 | C104: 1.0168574 | D104: 0.005818585035
A105: 1972-07-01 | B105: 0.0179468 | C105: 1.0179468 | D105: 0.005923010017
A106: 1972-08-01 | B106: 0.0143433 | C106: 1.0143433 | D106: =D105*C106 -> 0.006007965526
A107: 1972-09-01 | B107: 0.0083959 | C107: 1.0083959 | D107: 0.006058407804
A108: 1972-10-01 | B108: 0.0071575 | C108: 1.0071575 | D108: 0.006101770858
A109: 1972-11-01 | B109: 0.0095722 | C109: 1.0095722 | D109: 0.006160178229
A110: 1972-12-01 | B110: 0.0066083 | C110: 1.0066083 | D110: 0.006200886535
A111: 1973-01-01 | B111: 0.0114172 | C111: 1.0114172 | D111: 0.006271683296
A112: 1973-02-01 | B112: 0.0098772 | C112: 1.0098772 | D112: 0.006333629967
A113: 1973-03-01 | B113: 0.0104793 | C113: 1.0104793 | D113: 0.006400001975
A114: 1973-04-01 | B114: 0.0120299 | C114: 1.0120299 | D114: 0.006476993359
A115: 1973-05-01 | B115: 0.011477 | C115: 1.011477 | D115: 0.006551329812
A116: 1973-06-01 | B116: 0.0126976 | C116: 1.0126976 | D116: 0.006634515977
A117: 1973-07-01 | B117: 0.0110711 | C117: 1.0110711 | D117: 0.006707967367
A118: 1973-08-01 | B118: 0.008971 | C118: 1.008971 | D118: 0.006768144542
A119: 1973-09-01 | B119: 0.0083682 | C119: 1.0083682 | D119: 0.006824781729
A120: 1973-10-01 | B120: 0.0097251 | C120: 1.0097251 | D120: 0.006891153414
A121: 1973-11-01 | B121: 0.0068062 | C121: 1.0068062 | D121: 0.006938055982
A122: 1973-12-01 | B122: 0.0085459 | C122: 1.0085459 | D122: 0.006997347915
A123: 1974-01-01 | B123: 0.0196029 | C123: 1.0196029 | D123: 0.007134516227
A124: 1974-02-01 | B124: 0.0105433 | C124: 1.0105433 | D124: 0.007209737571
A125: 1974-03-01 | B125: 0.0149748 | C125: 1.0149748 | D125: 0.00731770195
A126: 1974-04-01 | B126: 0.0125771 | C126: 1.0125771 | D126: 0.007409737419
A127: 1974-05-01 | B127: 0.0163621 | C127: 1.0163621 | D127: 0.007530976283
A128: 1974-06-01 | B128: 0.0212691 | C128: 1.0212691 | D128: 0.007691153371
A129: 1974-07-01 | B129: 0.0332528 | C129: 1.0332528 | D129: 0.007946905756
A130: 1974-08-01 | B130: 0.0439866 | C130: 1.0439866 | D130: 0.008296463121
A131: 1974-09-01 | B131: 0.04768 | C131: 1.04768 | D131: 0.008692038482
A132: 1974-10-01 | B132: 0.0374669 | C132: 1.0374669 | D132: 0.009017702219
A133: 1974-11-01 | B133: 0.0215898 | C133: 1.0215898 | D133: 0.009212392606
A134: 1974-12-01 | B134: 0.0125841 | C134: 1.0125841 | D134: 0.009328322276
A135: 1975-01-01 | B135: 0.0128071 | C135: 1.0128071 | D135: 0.009447791032
A136: 1975-02-01 | B136: 0.0151742 | C136: 1.0151742 | D136: 0.009591153703
A137: 1975-03-01 | B137: 0.0166082 | C137: 1.0166082 | D137: 0.009750445502
A138: 1975-04-01 | B138: 0.0187874 | C138: 1.0187874 | D138: 0.009933631022
A139: 1975-05-01 | B139: 0.0199555 | C139: 1.0199555 | D139: 0.0101318616
A140: 1975-06-01 | B140: 0.0230588 | C140: 1.0230588 | D140: 0.01036549017
A141: 1975-07-01 | B141: 0.0182703 | C141: 1.0182703 | D141: 0.01055487078
A142: 1975-08-01 | B142: 0.0171041 | C142: 1.0171041 | D142: 0.01073540235
A143: 1975-09-01 | B143: 0.0155799 | C143: =B143+1 -> 1.0155799 | D143: 0.01090265884
A144: 1975-10-01 | B144: 0.0202922 | C144: 1.0202922 | D144: 0.01112389777
A145: 1975-11-01 | B145: 0.0217184 | C145: 1.0217184 | D145: 0.01136549104
A146: 1975-12-01 | B146: 0.0194659 | C146: 1.0194659 | D146: 0.01158673055
A147: 1976-01-01 | B147: 0.0184068 | C147: 1.0184068 | D147: 0.01180000518
A148: 1976-02-01 | B148: 0.019199 | C148: 1.019199 | D148: 0.01202655348
A149: 1976-03-01 | B149: 0.0223694 | C149: 1.0223694 | D149: 0.01229558026
A150: 1976-04-01 | B150: 0.0237513 | C150: 1.0237513 | D150: 0.01258761628
A151: 1976-05-01 | B151: 0.0224269 | C151: 1.0224269 | D151: 0.01286991749
A152: 1976-06-01 | B152: 0.032593 | C152: 1.032593 | D152: 0.01328938671
A153: 1976-07-01 | B153: 0.0294999 | C153: 1.0294999 | D153: 0.01368142229
A154: 1976-08-01 | B154: 0.0255498 | C154: 1.0255498 | D154: 0.0140309799
A155: 1976-09-01 | B155: 0.0278776 | C155: 1.0278776 | D155: 0.01442212994
A156: 1976-10-01 | B156: 0.0328895 | C156: 1.0328895 | D156: 0.01489646658
A157: 1976-11-01 | B157: 0.0360601 | C157: 1.0360601 | D157: 0.01543363466
A158: 1976-12-01 | B158: 0.0302752 | C158: 1.0302752 | D158: 0.01590089103
A159: 1977-01-01 | B159: 0.0220948 | C159: 1.0220948 | D159: 0.01625221804
A160: 1977-02-01 | B160: 0.0173156 | C160: 1.0173156 | D160: 0.01653363495
A161: 1977-03-01 | B161: 0.0196971 | C161: 1.0196971 | D161: 0.01685929961
A162: 1977-04-01 | B162: 0.022676 | C162: 1.022676 | D162: 0.01724160109
A163: 1977-05-01 | B163: 0.0288457 | C163: 1.0288457 | D163: 0.01773894714
A164: 1977-06-01 | B164: 0.0321776 | C164: 1.0321776 | D164: 0.01830974388
A165: 1977-07-01 | B165: 0.0333494 | C165: 1.0333494 | D165: 0.01892036286
A166: 1977-08-01 | B166: 0.0267072 | C166: 1.0267072 | D166: 0.01942567277
A167: 1977-09-01 | B167: 0.0205002 | C167: 1.0205002 | D167: 0.01982390295
A168: 1977-10-01 | B168: 0.0140172 | C168: 1.0140172 | D168: 0.02010177856
A169: 1977-11-01 | B169: 0.0138675 | C169: 1.0138675 | D169: 0.02038053998
A170: 1977-12-01 | B170: 0.014937 | C170: 1.014937 | D170: =D169*C170 -> 0.0206849641
A171: 1978-01-01 | B171: 0.0195944 | C171: 1.0195944 | D171: 0.02109027356
A172: 1978-02-01 | B172: 0.0211061 | C172: 1.0211061 | D172: 0.02153540698
A173: 1978-03-01 | B173: 0.0231765 | C173: 1.0231765 | D173: 0.02203452234
A174: 1978-04-01 | B174: 0.0257842 | C174: 1.0257842 | D174: 0.02260266488
A175: 1978-05-01 | B175: 0.0292079 | C175: 1.0292079 | D175: 0.02326284125
A176: 1978-06-01 | B176: 0.0304713 | C176: 1.0304713 | D176: 0.02397169027
A177: 1978-07-01 | B177: 0.030124 | C177: 1.030124 | D177: 0.02469381346
A178: 1978-08-01 | B178: 0.0306049 | C178: 1.0306049 | D178: 0.02544956515
A179: 1978-09-01 | B179: 0.0277836 | C179: 1.0277836 | D179: 0.02615664569
A180: 1978-10-01 | B180: 0.026119 | C180: 1.026119 | D180: 0.02683983112
A181: 1978-11-01 | B181: 0.0237397 | C181: 1.0237397 | D181: 0.02747700066
A182: 1978-12-01 | B182: 0.0256047 | C182: 1.0256047 | D182: 0.02818054102
A183: 1979-01-01 | B183: 0.0263158 | C183: 1.0263158 | D183: 0.0289221345
A184: 1979-02-01 | B184: 0.0225812 | C184: 1.0225812 | D184: 0.029575231
A185: 1979-03-01 | B185: 0.0232496 | C185: 1.0232496 | D185: 0.0302628433
A186: 1979-04-01 | B186: 0.024973 | C186: 1.024973 | D186: 0.03101859728
A187: 1979-05-01 | B187: 0.0374597 | C187: 1.0374597 | D187: 0.03218054463
A188: 1979-06-01 | B188: 0.0382246 | C188: 1.0382246 | D188: 0.03341063308
A189: 1979-07-01 | B189: 0.033268 | C189: 1.033268 | D189: 0.03452213802
A190: 1979-08-01 | B190: 0.0271982 | C190: 1.0271982 | D190: 0.03546107803
A191: 1979-09-01 | B191: 0.0287739 | C191: 1.0287739 | D191: 0.03648143154
A192: 1979-10-01 | B192: 0.0401708 | C192: 1.0401708 | D192: 0.03794691983
A193: 1979-11-01 | B193: 0.0458722 | C193: 1.0458722 | D193: 0.03968762853
A194: 1979-12-01 | B194: 0.0451312 | C194: 1.0451312 | D194: 0.04147877883
A195: 1980-01-01 | B195: 0.0407928 | C195: 1.0407928 | D195: 0.04317081436
A196: 1980-02-01 | B196: 0.0420228 | C196: 1.0420228 | D196: 0.04498497286
A197: 1980-03-01 | B197: 0.0370035 | C197: 1.0370035 | D197: 0.0466495743
A198: 1980-04-01 | B198: 0.0369921 | C198: 1.0369921 | D198: 0.04837524002
A199: 1980-05-01 | B199: 0.0369896 | C199: 1.0369896 | D199: 0.0501646208
A200: 1980-06-01 | B200: 0.0339943 | C200: 1.0339943 | D200: 0.05186993197
... 1434 more rows
